bitfinex/quotes_SOLUSD_20240827
["timestamp","ask_amount","ask_price","bid_price","bid_amount"]
[1724757908874,381.3,155.09,155.02,10.27820861]
[1724757909052,381.3,155.09,155.03,1.28988448]
[1724757910251,20.0,155.08,155.03,1.28988448]
[1724757910651,6.4491,155.06,155.03,1.28988448]
[1724757914079,6.4491,155.06,155.01,6.451]
[1724757914267,6.4497,155.05,155.01,6.451]
[1724757915274,6.4497,155.05,155.02,1.29000403]
[1724757915479,6.4492,155.06,155.01,6.451]
[1724757917562,6.4492,155.06,155.02,6.4505]
[1724757917761,401.3,155.08,155.03,1.28985866]
[1724757917762,6.4487,155.07,155.03,1.28985866]
[1724757917984,407.7483,155.08,155.03,7.74015866]
[1724757918966,6.4488,155.07,155.03,7.74015866]
[1724757919166,6.4488,155.07,155.03,1.28985866]
[1724757919686,6.4488,155.07,155.02,16.72880861]
[1724757920005,6.4488,155.07,155.02,6.4506]
[1724757922187,6.4495,155.05,155.01,16.1275]
[1724757922779,6.4495,155.05,155.02,1.28999173]
[1724757922981,6.449,155.07,155.02,7.74059173]
[1724757923365,6.4492,155.06,155.02,7.74059173]
[1724757924371,6.4488,155.07,155.02,7.74059173]
[1724757924979,26.4484,155.08,155.03,22.4993]
[1724757925161,26.4484,155.08,155.04,1.28967116]
[1724757925483,26.4484,155.08,155.05,1.2896738]
[1724757926376,25.9484,155.08,155.04,1.28967153]
[1724757926777,25.9484,155.08,155.05,1.28967453]
[1724757926984,6.4484,155.08,155.05,1.28967453]
[1724757929393,6.4479,155.09,155.05,1.28967453]
[1724757931693,6.4479,155.09,155.04,6.4498]
[1724757932701,6.4482,155.08,155.04,6.4498]
[1724757938999,6.4479,155.09,155.05,1.28976265]
[1724757939501,6.4479,155.09,155.05,7.73916265]
[1724757939883,6.4479,155.09,155.05,6.4494]
[1724757941305,6.4479,155.09,155.04,6.4498]
[1724757943108,6.4483,155.08,155.04,6.4498]
[1724757944508,6.4483,155.08,155.03,38.6247]
[1724757947607,6.4483,155.08,155.04,6.4499]
[1724757950439,6.4483,155.08,155.03,38.6247]
[1724757950903,6.4483,155.08,154.95,227.8547182]
[1724757950904,6.4498,155.05,155.0,22.5797]
[1724757951111,6.4498,155.05,155.0,16.1284]
[1724757951481,6.4492,155.06,155.01,6.4511]
[1724757952592,10.27820861,155.03,154.97,15.7939]
[1724757952914,30.12549,155.04,154.98,1.29024827]
[1724757952915,6.4508,155.02,154.98,1.29024827]
[1724757953110,6.4513,155.01,154.98,1.29024827]
[1724757954083,6.4513,155.01,154.97,15.7939]
[1724757956897,6.4516,155.0,154.97,15.7939]
[1724757959215,6.452,154.99,154.97,15.7939]
[1724757959810,6.4517,155.0,154.97,15.7939]
[1724757961594,6.4524,154.98,154.97,15.7939]
[1724757961820,6.4521,154.99,154.97,15.7939]
[1724757966121,6.4516,155.0,154.98,1.29035959]
[1724757966296,6.4512,155.01,154.98,1.29035959]
[1724757966495,20.0,155.0,154.98,1.29035959]
[1724757967301,20.0,155.02,154.98,1.29035959]
[1724757967717,6.4517,155.0,154.98,1.29035959]
[1724757970716,6.4504,155.03,154.99,16.73020861]
[1724757970922,387.75,155.04,155.0,1.2900064]
[1724757972816,381.3,155.04,155.02,15.359]
[1724757973021,381.3,155.04,155.02,16.64889473]
[1724757973431,381.3,155.04,155.02,23.09959473]
[1724757973723,381.3,155.04,155.02,15.359]
[1724757974102,6.4498,155.05,155.02,15.359]
[1724757974303,6.4498,155.05,155.03,1.28990266]
[1724757974508,6.4498,155.05,155.02,15.359]
[1724757978808,6.4498,155.05,155.03,1.28990471]
[1724757979411,6.4491,155.06,155.03,1.28990471]
[1724757979930,6.4491,155.06,155.02,21.8097]
[1724757980106,381.3,155.05,155.02,21.8097]
[1724757982338,381.3,155.05,155.03,1.2898456]
[1724757982515,381.3,155.05,155.02,32.08790861]
[1724757982826,381.3,155.05,155.02,41.76360861]
[1724757983047,381.3,155.05,155.03,1.28980821]
[1724757983714,381.3,155.05,155.04,6.4499]
[1724757984725,381.3,155.05,155.03,7.74000821]
[1724757985545,381.3,155.05,155.04,6.4499]
[1724757986031,6.4479,155.09,155.04,6.4499]
[1724757986232,6.4479,155.09,155.05,7.73891506]
[1724757988017,6.4479,155.09,155.05,1.28961506]
[1724757988425,6.4479,155.09,155.04,6.4499]
[1724757990530,6.4479,155.09,155.05,1.28960899]
[1724757991837,6.4479,155.09,155.04,6.4499]
[1724757992014,381.3,155.08,155.02,31.4854]
[1724757992210,6.4489,155.07,155.02,37.9358]
[1724757992531,387.7483,155.08,155.03,6.4502]
[1724757992830,387.7483,155.08,155.04,1.28976595]
[1724757993034,387.7483,155.08,155.05,1.2897671]
[1724757993408,387.7483,155.08,155.03,6.4502]
[1724757993612,0.4475397,155.11,155.05,26.40180861]
[1724757993806,6.8945397,155.11,155.06,6.449]
[1724757994936,6.8945397,155.11,155.06,7.73858262]
[1724757995138,6.8945397,155.11,155.06,6.449]
[1724757995460,6.8945397,155.11,155.06,7.7385837]
[1724757996014,6.8945397,155.11,155.05,22.573]
[1724757996015,6.4474,155.1,155.05,22.573]
[1724757996216,6.4474,155.1,155.06,1.28958607]
[1724757997127,6.4474,155.1,155.06,7.73858607]
[1724757998231,0.4475397,155.11,155.07,6.4486]
[1724757998819,6.8945397,155.11,155.07,6.4486]
[1724757999034,6.57289,155.1,155.05,22.573]
[1724757999535,6.4479,155.09,155.05,22.573]
[1724757999714,0.12549,155.1,155.04,15.7826]
[1724757999913,65.37647,155.1,155.04,15.7826]
[1724758000237,6.4479,155.09,155.05,1.28976133]
[1724758000531,6.4479,155.09,155.04,22.2324]
[1724758001432,6.4479,155.09,155.05,1.2896985]
[1724758003618,6.4482,155.08,155.05,1.2896985]
[1724758003813,387.749,155.07,155.04,15.7826]
[1724758004007,387.749,155.07,155.02,22.5771]
[1724758004419,6.4492,155.06,155.02,22.5771]
[1724758004820,6.4495,155.05,155.01,12.819]
[1724758005020,6.4495,155.05,155.01,6.4511]
[1724758006434,6.4495,155.05,155.0,22.5175]
[1724758006738,6.4495,155.05,155.0,23.80762471]
[1724758007227,6.4504,155.03,155.0,16.066]
[1724758009940,426.3,155.04,155.0,16.066]
[1724758010144,432.7501,155.04,155.0,16.066]
[1724758010509,387.7501,155.04,155.0,16.066]
[1724758010713,387.7501,155.04,155.0,22.5174]
[1724758012841,6.4501,155.04,155.0,22.5174]
[1724758013019,6.4501,155.04,155.0,16.066]
[1724758013934,6.4501,155.04,155.0,22.5175]
[1724758016243,6.4501,155.04,154.99,22.5816]
[1724758016535,6.57589,155.03,154.99,22.5816]
[1724758016739,6.70138,155.03,154.99,22.5816]
[1724758017037,6.57589,155.03,154.99,22.5816]
[1724758017240,6.57589,155.03,154.99,23.87184162]
[1724758019643,6.57589,155.03,154.99,16.1297]
[1724758020338,6.57589,155.03,154.99,17.41995521]
[1724758021246,6.57589,155.03,154.99,16.1297]
[1724758021424,6.57589,155.03,154.96,25.64060861]
[1724758021425,6.57629,155.02,154.96,31.4951]
[1724758021749,6.57629,155.02,154.97,6.4527]
[1724758022046,6.57629,155.02,154.97,7.74305089]
[1724758022541,6.70148,155.03,154.99,6.4519]
[1724758022737,6.57599,155.03,155.0,1.29022341]
[1724758022941,6.4505,155.03,154.99,6.4519]
[1724758023329,6.4505,155.03,155.0,1.29018085]
[1724758023645,6.4505,155.03,154.99,6.4519]
[1724758023820,6.4505,155.03,155.0,1.29018081]
[1724758024237,6.4505,155.03,154.99,6.4519]
[1724758024943,6.45,155.04,155.0,1.29017802]
[1724758025318,381.3,155.06,155.02,6.4504]
[1724758026325,387.7491,155.06,155.01,6.451]
[1724758026651,387.7491,155.06,155.02,1.28998057]
[1724758027339,6.4495,155.05,155.0,22.58]
[1724758027519,6.45,155.04,155.0,22.58]
[1724758029647,6.45,155.04,155.0,16.1285]
[1724758033857,6.45,155.04,155.0,22.58]
[1724758035436,6.45,155.04,155.0,16.1285]
[1724758036362,6.4504,155.03,155.0,16.1285]
[1724758036657,75.37647,155.02,154.96,1.29023042]
[1724758036859,95.37647,155.02,154.96,1.29023042]
[1724758037063,30.0,155.02,154.97,25.98610861]
[1724758037235,30.0,155.02,154.98,7.74214353]
[1724758037437,30.0,155.02,154.99,1.29014353]
[1724758037841,387.7499,155.04,154.99,7.74204353]
[1724758038045,387.7499,155.04,155.0,6.4515]
[1724758038341,387.7499,155.04,155.0,1.29007899]
[1724758039561,6.4499,155.04,155.0,1.29007899]
[1724758042751,6.4499,155.04,155.0,7.74157899]
[1724758042947,6.4499,155.04,155.0,14.11857899]
[1724758043951,6.4495,155.05,155.01,6.4511]
[1724758044158,6.4495,155.05,155.02,1.28989356]
[1724758044357,387.7491,155.06,155.02,7.74059356]
[1724758044559,381.3,155.06,155.02,7.74059356]
[1724758045566,6.4487,155.07,155.03,6.4503]
[1724758045739,20.0,155.06,155.04,1.2897692]
[1724758047759,0.12549,155.1,155.04,7.7395692]
[1724758048055,6.4479,155.09,155.05,1.2896852]
[1724758049934,6.4479,155.09,155.04,6.4498]
[1724758051157,6.4484,155.08,155.03,6.4503]
[1724758051363,10.40369861,155.1,155.03,6.4503]
[1724758051566,65.37647,155.09,155.03,6.4503]
[1724758052239,65.37647,155.09,155.02,16.3804]
[1724758052562,85.37647,155.09,155.02,22.8308]
[1724758052748,6.4493,155.06,155.02,16.3804]
[1724758052951,6.4493,155.06,155.03,1.28991974]
[1724758056068,6.4487,155.07,155.03,1.28991974]
[1724758057345,6.4483,155.08,155.03,7.74001974]
[1724758057564,6.4483,155.08,155.03,6.4501]
[1724758063665,6.4491,155.06,155.02,22.8311]
[1724758063867,6.4488,155.07,155.02,22.8311]
[1724758065064,0.12549,155.06,155.02,16.3804]
[1724758065253,6.4498,155.05,155.01,16.1273]
[1724758066283,45.25098,155.06,155.0,6.377]
[1724758066284,0.25098,155.06,155.0,6.377]
[1724758066564,6.45,155.04,155.0,6.377]
[1724758067590,6.45,155.04,155.01,1.29008325]
[1724758068855,6.45,155.04,155.0,6.377]
[1724758069078,6.45,155.04,155.01,1.29008479]
[1724758070257,6.45,155.04,155.0,6.377]
[1724758070455,6.4504,155.03,154.99,6.4516]
[1724758070760,0.12549,155.05,154.98,39.0517]
[1724758070761,6.4508,155.02,154.98,39.0517]
[1724758073065,6.4508,155.02,154.99,1.29021752]
[1724758075375,6.4512,155.01,154.98,32.5993]
[1724758075677,6.4512,155.01,154.98,16.4688]
[1724758076757,6.4512,155.01,154.98,17.75913264]
[1724758076957,10.27820861,155.03,154.98,17.75913264]
[1724758076958,6.4508,155.02,154.99,1.29033247]
[1724758079480,6.4508,155.02,154.98,22.9211]
[1724758079785,6.4508,155.02,154.99,1.29024157]
[1724758081370,6.4508,155.02,154.98,22.9211]
[1724758081570,6.4508,155.02,154.99,1.29024253]
[1724758081876,6.4508,155.02,154.98,22.9211]
[1724758082061,6.4508,155.02,154.99,1.29024913]
[1724758082260,6.4508,155.02,154.98,22.9211]
[1724758082461,6.4508,155.02,154.98,16.4688]
[1724758082964,6.4508,155.02,154.98,17.75915949]
[1724758083881,6.4508,155.02,154.98,16.4688]
[1724758084077,6.4512,155.01,154.98,16.4688]
[1724758084381,6.4512,155.01,154.98,17.7591395]
[1724758085175,6.4512,155.01,154.99,1.29032531]
[1724758085775,6.4512,155.01,154.98,16.4688]
[1724758086958,6.4512,155.01,154.96,12.4668]
[1724758086959,6.4518,155.0,154.96,6.0138]
[1724758087156,0.12549,154.99,154.95,227.8547182]
[1724758087383,6.4526,154.98,154.95,227.8547182]
[1724758088572,6.4529,154.97,154.95,227.8547182]
[1724758089772,6.4524,154.98,154.95,227.8547182]
[1724758091559,6.452,154.99,154.96,1.29054635]
[1724758095978,382.42396455,155.02,154.96,11.56875496]
[1724758096177,381.3,155.02,154.96,11.56875496]
[1724758096491,381.3,155.02,154.97,6.4525]
[1724758096692,6.4515,155.01,154.96,22.5857]
[1724758099195,6.4515,155.01,154.97,7.7430162]
[1724758102175,6.4509,155.02,154.97,7.7430162]
[1724758102369,6.4509,155.02,154.98,6.4523]
[1724758102570,6.4509,155.02,154.99,1.29020944]
[1724758105393,6.4509,155.02,154.98,6.4523]
[1724758106196,6.4509,155.02,154.99,1.29020905]
[1724758106383,6.4509,155.02,154.98,6.4523]
[1724758108411,387.7499,155.05,154.99,16.34460762]
[1724758108576,381.3,155.05,154.99,26.62281623]
[1724758108895,387.7495,155.05,155.0,6.4515]
[1724758109206,387.7495,155.05,155.01,1.29003836]
[1724758110988,6.4495,155.05,155.01,1.29003836]
[1724758111189,6.4495,155.05,155.01,7.74113836]
[1724758111400,6.4495,155.05,155.01,6.4511]
[1724758114683,6.4495,155.05,155.02,1.29003773]
[1724758115577,6.57459,155.06,155.02,1.29003773]
[1724758116273,381.3,155.07,155.03,6.4503]
[1724758116579,381.3,155.07,155.04,1.28983803]
[1724758116983,6.4486,155.08,155.04,1.28983803]
[1724758118600,6.4487,155.07,155.04,1.28983803]
[1724758122902,6.4491,155.06,155.02,23.86663936]
[1724758123112,0.25098,155.05,154.99,31.1841]
[1724758123588,6.70058,155.05,155.0,6.4512]
[1724758123796,6.70058,155.05,155.01,6.4511]
[1724758124793,6.69998,155.07,155.02,7.74075521]
[1724758124996,0.12549,155.06,155.02,7.74075521]
[1724758125584,6.449,155.07,155.02,7.74075521]
[1724758125986,0.12549,155.08,155.03,6.4502]
[1724758126291,20.25098,155.08,155.04,1.2898308]
[1724758126487,20.25098,155.08,155.05,1.28983078]
[1724758126488,0.12549,155.08,155.05,1.28983078]
[1724758126691,381.3,155.09,155.05,1.28983078]
[1724758127707,387.7478,155.09,155.05,1.28983078]
[1724758127879,381.3,155.09,155.04,16.3425]
[1724758128302,6.4483,155.08,155.04,16.3425]
[1724758128803,381.3,155.07,155.04,16.3425]
[1724758130556,381.3,155.07,155.05,1.28971827]
[1724758130886,381.3,155.08,155.05,27.69102688]
[1724758131388,381.3,155.08,155.07,6.4487]
[1724758131589,6.8946397,155.11,155.07,6.4487]
[1724758131908,6.8946397,155.11,155.08,1.28948529]
[1724758132799,0.4475397,155.11,155.07,1.28951088]
[1724758133111,0.4475397,155.11,155.08,7.7375698]
[1724758134613,0.4475397,155.11,155.08,6.4482]
[1724758134794,381.3,155.1,155.08,6.4482]
[1724758135298,381.3,155.1,155.07,22.5697]
[1724758135700,381.3,155.1,155.07,16.1212]
[1724758140705,381.3,155.09,155.07,16.1212]
[1724758142205,381.3,155.09,155.07,17.41075313]
[1724758143718,381.3,155.09,155.08,1.28952879]
[1724758144021,0.4475397,155.11,155.08,1.28952879]
[1724758144227,0.4475397,155.11,155.1,16.72560861]
[1724758144532,0.4475397,155.11,155.1,7.73642276]
[1724758144731,0.4475397,155.11,155.1,6.4474]
[1724758145221,0.4475397,155.11,155.08,6.4479]
[1724758147023,0.4475397,155.11,155.1,6.4474]
[1724758147228,0.4475397,155.11,155.1,7.73663118]
[1724758147530,0.4475397,155.11,155.1,6.4474]
[1724758147842,403.0287,155.22,155.17,6.4441]
[1724758148132,381.3,155.22,155.16,1.28878538]
[1724758148331,387.7428,155.22,155.16,1.28878538]
[1724758149105,387.7428,155.22,155.16,7.73348538]
[1724758149317,20.0,155.21,155.16,1.28878538]
[1724758149517,26.4428,155.21,155.16,7.73348538]
[1724758149828,26.4428,155.21,155.16,1.28878538]
[1724758150207,20.0,155.21,155.13,1.28873485]
[1724758150530,10.52918861,155.2,155.12,12.5017]
[1724758150714,20.12549,155.19,155.12,12.5017]
[1724758150925,0.12549,155.18,155.12,12.5017]
[1724758151804,6.56959,155.18,155.12,12.5017]
[1724758152200,20.12549,155.18,155.1,16.5477]
[1724758152421,6.4454,155.15,155.1,16.5477]
[1724758152608,6.4454,155.15,155.1,22.9951]
[1724758153315,6.4454,155.15,155.11,1.28918647]
[1724758153526,45.25098,155.17,155.11,1.28918647]
[1724758153527,51.69588,155.17,155.11,1.28918647]
[1724758153705,0.25098,155.16,155.11,1.28918647]
[1724758154609,6.4449,155.17,155.11,7.73598647]
[1724758156325,6.4449,155.17,155.12,6.4465]
[1724758156531,6.4449,155.17,155.13,1.28903769]
[1724758156712,10.27820861,155.17,155.1,16.5477]
[1724758156918,6.4454,155.15,155.1,16.5477]
[1724758157147,6.4454,155.15,155.11,1.2892083]
[1724758157324,6.57049,155.16,155.11,7.7361083]
[1724758157523,6.445,155.16,155.11,7.7361083]
[1724758158127,16.72290861,155.17,155.12,6.4466]
[1724758158327,6.4447,155.17,155.13,1.28898171]
[1724758159038,6.4447,155.17,155.12,6.4466]
[1724758159235,6.4447,155.17,155.11,6.4469]
[1724758159532,0.12549,155.16,155.1,28.045]
[1724758159724,0.37647,155.16,155.1,28.045]
[1724758160027,6.445,155.16,155.11,7.73599239]
[1724758160234,6.4446,155.17,155.11,7.73599239]
[1724758160619,6.4446,155.17,155.12,6.4465]
[1724758160936,6.4446,155.17,155.13,1.28899183]
[1724758161235,411.57820861,155.19,155.1,21.5977]
[1724758161236,401.3,155.19,155.14,1.28898816]
[1724758161539,401.3,155.19,155.11,26.39490861]
[1724758161540,20.0,155.19,155.13,6.4461]
[1724758161836,391.57820861,155.22,155.13,6.4461]
[1724758161837,26.4441,155.18,155.14,1.28889355]
[1724758162930,26.4441,155.18,155.13,6.4461]
[1724758163316,26.4441,155.18,155.14,1.28898019]
[1724758166826,26.4441,155.18,155.14,7.73468019]
[1724758167243,26.4441,155.18,155.14,6.4457]
[1724758167415,26.4441,155.18,155.13,6.4461]
[1724758167620,26.4441,155.18,155.14,1.28896074]
[1724758168615,26.4441,155.18,155.13,6.4461]
[1724758169355,26.4441,155.18,155.14,6.4457]
[1724758170632,26.4441,155.18,155.15,1.28884261]
[1724758171130,20.0,155.18,155.15,1.28884261]
[1724758171339,20.0,155.19,155.15,1.28884261]
[1724758171932,26.4438,155.19,155.15,1.28884261]
[1724758172130,6.4441,155.18,155.15,1.28874918]
[1724758173148,6.4441,155.18,155.14,1.28886447]
[1724758173445,6.4441,155.18,155.15,1.28886537]
[1724758173840,6.4445,155.17,155.15,1.28886537]
[1724758174022,6.4445,155.17,155.13,23.72362797]
[1724758174225,6.445,155.16,155.13,7.60882797]
[1724758174445,6.445,155.16,155.13,7.60895873]
[1724758174627,6.4454,155.15,155.1,37.7157]
[1724758174823,6.4454,155.15,155.11,1.28913336]
[1724758178561,6.4466,155.12,155.1,5.05]
[1724758182122,6.4463,155.13,155.11,1.28942106]
[1724758183730,6.4463,155.13,155.1,5.05]
[1724758184136,6.4463,155.13,155.11,1.28925713]
[1724758184622,6.4466,155.12,155.1,5.05]
[1724758186352,6.447,155.11,155.1,5.05]
[1724758188051,6.57249,155.11,155.1,5.05]
[1724758188228,26.82347,155.11,155.1,5.05]
[1724758188849,56.82347,155.11,155.1,5.05]
[1724758189233,121.94896,155.11,155.1,5.05]
[1724758191731,6.4492,155.06,155.02,15.3808]
[1724758191955,16.72740861,155.06,155.02,15.3808]
[1724758195238,6.4495,155.05,155.01,16.1277]
[1724758197346,6.4491,155.06,155.02,1.29005916]
[1724758197535,381.3,155.08,155.02,1.29005916]
[1724758197737,26.4487,155.07,155.02,1.29005916]
[1724758198449,26.4487,155.07,155.02,7.74065916]
[1724758198763,26.4487,155.07,155.03,6.4503]
[1724758198764,20.0,155.07,155.03,6.4503]
[1724758199347,26.4487,155.07,155.03,6.4503]
[1724758199736,20.0,155.07,155.04,1.28987937]
[1724758200137,381.3,155.08,155.04,7.73967937]
[1724758200339,381.3,155.08,155.07,6.4487]
[1724758200567,381.3,155.08,155.07,7.73828105]
[1724758201443,10.27820861,155.16,155.07,1.28958105]
[1724758201444,6.4458,155.14,155.07,1.28958105]
[1724758201756,6.4458,155.14,155.08,10.27820861]
[1724758201957,6.4458,155.14,155.09,1.28937949]
[1724758202140,6.4458,155.14,155.06,16.73520861]
[1724758202350,6.4458,155.14,155.08,22.5688]
[1724758202762,20.0,155.13,155.08,22.5688]
[1724758203071,6.4466,155.12,155.08,16.1206]
[1724758203252,6.4475,155.1,155.06,6.457]
[1724758203454,10.65467861,155.11,155.04,31.8447]
[1724758203657,45.12549,155.1,155.04,31.8447]
[1724758203839,65.12549,155.1,155.04,31.8447]
[1724758204244,6.57369,155.09,155.04,31.8447]
[1724758205345,16.85189861,155.09,155.04,31.8447]
[1724758205669,6.4484,155.08,155.04,31.8447]
[1724758208548,6.4484,155.08,155.04,16.1244]
[1724758211468,10.27820861,155.07,155.02,6.2917]
[1724758211792,10.52918861,155.07,155.01,16.1279]
[1724758212066,6.4495,155.05,155.01,16.1279]
[1724758212868,6.4495,155.05,155.01,22.579]
[1724758213084,6.4495,155.05,155.01,23.86908386]
[1724758213847,6.4495,155.05,155.01,22.579]
[1724758215072,6.4503,155.03,155.0,15.0952]
[1724758215581,6.45,155.04,155.0,15.0952]
[1724758215744,6.45,155.04,155.0,21.5467]
[1724758216272,6.45,155.04,155.0,15.0952]
[1724758217063,6.4504,155.03,154.98,28.988]
[1724758217253,6.4511,155.02,154.98,22.5357]
[1724758217460,6.57659,155.02,154.98,16.1308]
[1724758217657,6.4517,155.0,154.96,21.98]
[1724758217860,10.27820861,155.01,154.96,15.5269]
[1724758218276,6.452,154.99,154.96,15.5269]
[1724758218477,6.4524,154.98,154.96,15.5269]
[1724758218780,6.452,154.99,154.96,15.5269]
[1724758219079,6.4524,154.98,154.96,15.5269]
[1724758219479,6.4521,154.99,154.96,15.5269]
[1724758219880,6.4521,154.99,154.95,227.8547182]
[1724758221360,6.4524,154.98,154.95,227.8547182]
[1724758221561,6.57839,154.97,154.95,227.8547182]
[1724758221759,6.4532,154.96,154.95,227.8547182]
[1724758222382,6.57839,154.97,154.95,227.8547182]
[1724758222680,6.4532,154.96,154.95,227.8547182]
[1724758223579,71.95516,154.96,154.95,227.8547182]
[1724758223797,101.95516,154.96,154.95,227.8547182]
[1724758224081,103.07942288,154.96,154.95,227.8547182]
[1724758230292,51.12426288,154.96,154.95,227.8547182]
[1724758230464,31.12426288,154.96,154.95,227.8547182]
[1724758230669,30.0,154.96,154.95,227.8547182]
[1724758231789,6.4529,154.97,154.95,227.8547182]
[1724758231993,6.4523,154.99,154.95,227.8547182]
[1724758232168,20.0,154.98,154.95,227.8547182]
[1724758234078,7.57546819,155.0,154.95,227.8547182]
[1724758234283,6.4513,155.01,154.97,16.5525]
[1724758234585,20.0,155.0,154.97,16.5525]
[1724758234966,6.4513,155.01,154.97,16.5525]
[1724758235498,6.4516,155.0,154.97,16.5525]
[1724758235675,6.4512,155.01,154.97,16.5525]
[1724758236197,20.0,155.0,154.97,16.5525]
[1724758236496,26.4516,155.0,154.97,16.5525]
[1724758238465,6.4521,154.99,154.95,227.8547182]
[1724758238684,6.4529,154.97,154.95,227.8547182]
[1724758238883,36.4529,154.97,154.95,227.8547182]
[1724758241779,6.4529,154.97,154.95,227.8547182]
[1724758243691,26.57869,154.96,154.95,227.8547182]
[1724758244369,56.57869,154.96,154.95,227.8547182]
[1724758244788,56.4532,154.96,154.95,227.8547182]
[1724758244996,30.0,154.96,154.95,227.8547182]
[1724758245374,387.7524,154.98,154.95,227.8547182]
[1724758247079,381.3,154.98,154.95,234.3083182]
[1724758247485,381.3,154.98,154.95,227.8547182]
[1724758248178,387.7524,154.98,154.95,227.8547182]
[1724758248793,6.4528,154.97,154.95,227.8547182]
[1724758248976,381.3,154.98,154.95,227.8547182]
[1724758249176,0.37647,154.97,154.95,227.8547182]
[1724758250394,381.3,154.98,154.95,227.8547182]
[1724758250776,0.25098,154.99,154.95,227.8547182]
[1724758251096,65.25098,154.99,154.95,227.8547182]
[1724758251295,6.4527,154.98,154.95,227.8547182]
[1724758251497,6.4532,154.96,154.95,227.8547182]
[1724758253185,6.82937,154.97,154.95,227.8547182]
[1724758253699,6.4532,154.96,154.95,227.8547182]
[1724758254206,6.57869,154.96,154.95,227.8547182]
[1724758254800,56.82967,154.96,154.95,227.8547182]
[1724758254980,127.59185154,154.96,154.95,227.8547182]
[1724758258005,112.22104762,154.96,154.95,227.8547182]
[1724758263598,30.37647,154.96,154.95,227.8547182]
[1724758263807,30.0,154.96,154.95,227.8547182]
[1724758264716,36.4532,154.96,154.95,227.8547182]
[1724758264878,56.4532,154.96,154.95,227.8547182]
[1724758265686,56.57869,154.96,154.95,227.8547182]
[1724758265889,50.0,154.96,154.95,227.8547182]
[1724758268593,387.7525,154.98,154.95,227.8547182]
[1724758270287,6.4532,154.96,154.95,227.8547182]
[1724758270481,6.57869,154.96,154.95,227.8547182]
[1724758271913,6.4532,154.96,154.95,227.8547182]
[1724758273312,6.57869,154.96,154.95,227.8547182]
[1724758273489,26.57869,154.96,154.95,227.8547182]
[1724758273694,71.70418,154.96,154.95,227.8547182]
[1724758273893,82.22104762,154.96,154.95,227.8547182]
[1724758275010,112.22104762,154.96,154.95,227.8547182]
[1724758278396,156.6484216,154.96,154.95,227.8547182]
[1724758278597,153.2845981,154.96,154.95,148.57104128]
[1724758278999,160.02752563,154.96,154.95,148.57104128]
[1724758279203,118.96397515,154.96,154.95,148.57104128]
[1724758279412,112.22104762,154.96,154.95,148.57104128]
[1724758281410,36.4532,154.96,154.95,148.57104128]
[1724758282798,36.57869,154.96,154.95,148.57104128]
[1724758283125,56.57869,154.96,154.95,148.57104128]
[1724758285603,26.82967,154.96,154.95,148.57104128]
[1724758288530,56.82967,154.96,154.95,148.57104128]
[1724758292238,50.12549,154.96,154.95,148.57104128]
[1724758292431,50.12549,154.96,154.95,165.2905289]
[1724758292432,30.0,154.96,154.95,165.2905289]
[1724758292610,1.12409922,154.99,154.96,6.4529]
[1724758292814,6.4512,155.01,154.97,18.00902675]
[1724758293033,6.4508,155.02,154.97,18.00902675]
[1724758294136,6.4503,155.04,154.99,10.26588762]
[1724758294437,6.4503,155.04,155.0,1.29010508]
[1724758294645,6.4503,155.04,154.99,10.26588762]
[1724758295153,6.449,155.07,155.02,6.4505]
[1724758295329,6.449,155.07,155.02,7.74046772]
[1724758295532,70.00114341,155.12,155.03,6.4503]
[1724758295717,20.0,155.1,155.03,6.4503]
[1724758295916,6.4486,155.08,155.03,6.4503]
[1724758296231,6.4487,155.07,155.01,44.9909]
[1724758297244,6.4493,155.06,155.01,44.9909]
[1724758297920,6.70048,155.05,155.01,38.5402]